fUSD/lending_fUSD_20251214
["ID","MTS","AMOUNT","RATE_DAILY","PERIOD"]
[398491196,1765741841879,-6063.22228336,0.00017,2]
[398491197,1765741841889,-150.0,0.00017,2]
[398491198,1765741841898,-535.52303297,0.00017,2]
[398491199,1765741841907,-2908889.27449255,0.00017,2]
[398491202,1765741844278,-2971.85965722,0.00016713,2]
[398491299,1765742549600,564.74,7.943e-05,2]
[398491300,1765742549816,564.74,8.361e-05,2]
[398491301,1765742550012,564.74,8.779e-05,2]
[398491302,1765742550394,564.74,9.197e-05,2]
[398491303,1765742550598,564.74,9.615e-05,2]
[398491304,1765742550858,564.74,0.00010033,2]
[398491305,1765742551075,564.74,0.00010451,2]
[398491306,1765742551522,564.74,0.00010869,2]
[398491307,1765742551918,564.74,0.00011287,2]
[398491308,1765742552127,564.74,0.00011705,2]
[398491309,1765742552331,564.74,0.00012123,2]
[398491310,1765742552546,564.74,0.00012541,2]
[398491311,1765742552755,564.74,0.00012959,2]
[398491312,1765742553002,564.74,0.00013377,2]
[398491313,1765742556322,564.74,0.00013795,2]
[398491314,1765742556360,80.13966194,0.00014213,2]
[398491315,1765742556384,484.60033806,0.00014213,2]
[398491316,1765742556419,564.74,0.00014631,2]
[398491317,1765742556470,564.74,0.00015049,2]
[398491318,1765742556503,564.74,0.00015467,2]
[398491321,1765742745571,150.0,0.00015288,2]
[398491524,1765743031475,-150.0,0.0001577,2]
[398491525,1765743031484,-282.0,0.0001577,2]
[398491526,1765743031493,-250.0,0.00015787,2]
[398491527,1765743031503,-289.8175195,0.00015803,2]
[398491528,1765743031513,-215.31,0.00015837,2]
[398491529,1765743031522,-999.0,0.00015853,3]
[398491530,1765743031532,-564.74,0.00015885,2]
[398491531,1765743031541,-1600.0,0.00015907,2]
[398491532,1765743031551,-1000.0,0.00015914,2]
[398491533,1765743031561,-156.79,0.0001597,2]
[398491534,1765743031570,-385.05,0.00015991,2]
[398491535,1765743031578,-200.0,0.00016022,2]
[398491536,1765743031588,-1200.0,0.00016549,2]
[398491537,1765743031597,-900.0,0.0001655,2]
[398491538,1765743031607,-300.0,0.0001655,2]
[398491539,1765743031616,-300.0,0.00016559,2]
[398491540,1765743031625,-300.0,0.00016559,2]
[398491541,1765743031634,-905.473,0.0001656,2]
[398491542,1765743031643,-1196.0,0.0001656,2]
[398491543,1765743031656,-1765.395,0.0001656,2]
[398491544,1765743031665,-2426.0,0.0001656,2]
[398491545,1765743031674,-253.0,0.00016596,2]
[398491546,1765743031683,-201.81529375,0.0001666,2]
[398491547,1765743031692,-985.0,0.00016699,2]
[398491548,1765743031701,-200.0,0.00016699,2]
[398491549,1765743031710,-550.0,0.00016712,2]
[398491550,1765743031720,-150.0,0.00016713,2]
[398491551,1765743031729,-611.0,0.00016713,2]
[398491552,1765743031740,-150.637,0.00016713,2]
[398491554,1765743031749,-1324.0,0.00016713,2]
[398491556,1765743031759,-1261.0,0.00016713,2]
[398491557,1765743031767,-589.0,0.00016713,2]
[398491559,1765743031776,-500.0,0.00016773,2]
[398491560,1765743031785,-500.0,0.00016773,2]
[398491561,1765743031794,-500.0,0.00016773,2]
[398491562,1765743031803,-500.0,0.00016773,2]
[398491563,1765743031811,-500.0,0.00016773,2]
[398491565,1765743031820,-500.0,0.00016773,2]
[398491567,1765743031830,-500.0,0.00016773,2]
[398491569,1765743031838,-500.0,0.00016773,2]
[398491570,1765743031847,-746.502,0.0001683,2]
[398491571,1765743031857,-1168.66454,0.0001683,2]
[398491572,1765743031866,-985.0,0.00016836,2]
[398491573,1765743031876,-500.0,0.00016849,2]
[398491574,1765743031885,-481.15230225,0.00016869,2]
[398491575,1765743031894,-153.3431443,0.00016885,2]
[398491576,1765743031907,-574.12855637,0.00016885,2]
[398491577,1765743031916,-500.0,0.00016885,2]
[398491578,1765743031925,-500.0,0.00016885,2]
[398491579,1765743031935,-500.0,0.00016885,2]
[398491580,1765743031944,-500.0,0.00016885,2]
[398491581,1765743031953,-200.0,0.00016885,2]
[398491582,1765743031963,-500.0,0.00016885,2]
[398491583,1765743031972,-297.40114472,0.00016885,2]
[398491584,1765743031982,-151.0,0.00016885,2]
[398491585,1765743031991,-151.0,0.00016885,2]
[398491586,1765743032000,-151.0,0.00016885,2]
[398491587,1765743032010,-151.0,0.00016885,2]
[398491588,1765743032020,-151.0,0.00016885,2]
[398491589,1765743032029,-500.0,0.00016885,2]
[398491590,1765743032039,-151.0,0.00016885,2]
[398491591,1765743032048,-500.0,0.00016885,2]
[398491592,1765743032057,-96.98674401,0.00016885,2]
[398491593,1765743032070,-54.01325599,0.00016885,2]
[398491594,1765743032079,-500.0,0.00016885,2]
[398491595,1765743032088,-151.0,0.00016885,2]
[398491596,1765743032097,-500.0,0.00016885,2]
[398491597,1765743032106,-500.0,0.00016885,2]
[398491598,1765743032119,-151.0,0.00016885,2]
[398491599,1765743032129,-500.0,0.00016885,2]
[398491600,1765743032138,-151.0,0.00016885,2]
[398491601,1765743032148,-500.0,0.00016885,2]
[398491602,1765743032161,-507.71225531,0.00016885,2]
[398491603,1765743032172,-215.0682438,0.00016885,2]
[398491604,1765743032183,-284.9317562,0.00016885,2]
[398491605,1765743032192,-161.22684173,0.00016885,2]
[398491606,1765743032203,-259.73500338,0.00016885,2]
[398491607,1765743032215,-240.26499662,0.00016885,2]
[398491608,1765743032225,-500.0,0.00016885,2]
[398491609,1765743032235,-500.0,0.00016885,2]
[398491610,1765743032244,-500.0,0.00016885,2]
[398491611,1765743032253,-539.41401497,0.00016885,2]
[398491612,1765743032262,-1000.0,0.00016885,2]
[398491613,1765743032271,-1000.0,0.00016885,2]
[398491614,1765743032280,-1000.0,0.00016885,2]
[398491616,1765743032289,-1000.0,0.00016885,2]
[398491617,1765743032298,-1000.0,0.00016885,2]
[398491618,1765743032307,-500.0,0.00016885,2]
[398491619,1765743032317,-620.0,0.00016885,2]
[398491620,1765743032327,-465.23644507,0.00016885,2]
[398491621,1765743032338,-534.76355493,0.00016885,2]
[398491622,1765743032347,-857.74247895,0.00016885,2]
[398491623,1765743032359,-142.25752105,0.00016885,2]
[398491624,1765743032368,-766.05408751,0.00016885,2]
[398491625,1765743032383,-233.94591249,0.00016885,2]
[398491626,1765743032393,-438.12438549,0.00016885,2]
[398491628,1765743032408,-561.87561451,0.00016885,2]
[398491629,1765743032417,-1000.0,0.00016885,2]
[398491630,1765743032427,-1000.0,0.00016885,2]
[398491631,1765743032438,-161.45836022,0.00016885,2]
[398491632,1765743032447,-500.0,0.00016885,2]
[398491633,1765743032457,-500.0,0.00016885,2]
[398491634,1765743032466,-500.0,0.00016891,2]
[398491635,1765743032476,-500.0,0.00016891,2]
[398491636,1765743032486,-500.0,0.00016891,2]
[398491637,1765743032495,-500.0,0.00016891,2]
[398491638,1765743032504,-500.0,0.00016891,2]
[398491639,1765743032514,-500.0,0.00016891,2]
[398491640,1765743032523,-500.0,0.00016891,2]
[398491641,1765743032532,-500.0,0.00016891,2]
[398491642,1765743032542,-500.0,0.00016891,2]
[398491643,1765743032552,-500.0,0.00016891,2]
[398491644,1765743032561,-500.0,0.00016891,2]
[398491645,1765743032570,-300.0,0.00016891,2]
[398491646,1765743032579,-500.0,0.00016891,2]
[398491647,1765743032588,-500.0,0.00016891,2]
[398491648,1765743032597,-500.0,0.00016891,2]
[398491649,1765743032606,-500.0,0.00016891,2]
[398491650,1765743032615,-500.0,0.00016891,2]
[398491651,1765743032623,-500.0,0.00016891,2]
[398491652,1765743032632,-500.0,0.00016891,2]
[398491653,1765743032641,-500.0,0.00016891,2]
[398491654,1765743032651,-500.0,0.00016891,2]
[398491655,1765743032660,-500.0,0.00016891,2]
[398491656,1765743032670,-500.0,0.00016891,2]
[398491657,1765743032679,-500.0,0.00016891,2]
[398491658,1765743032688,-398.33487822,0.00016891,2]
[398491659,1765743032697,-500.0,0.00016891,2]
[398491660,1765743032706,-500.0,0.00016891,2]
[398491661,1765743033174,-500.0,0.00016891,2]
[398491662,1765743033192,-500.0,0.00016891,2]
[398491663,1765743033202,-500.0,0.00016891,2]
[398491664,1765743033211,-500.0,0.00016891,2]
[398491665,1765743033221,-500.0,0.00016891,2]
[398491666,1765743033231,-500.0,0.00016891,2]
[398491667,1765743033241,-500.0,0.00016891,2]
[398491668,1765743033251,-148.48325065,0.00016891,2]
[398491669,1765743033267,-351.51674935,0.00016891,2]
[398491670,1765743033277,-500.0,0.00016891,2]
[398491671,1765743033287,-280.15148591,0.00016891,2]
[398491672,1765743033298,-219.84851409,0.00016891,2]
[398491673,1765743033307,-192.9287666,0.00016891,2]
[398491679,1765743037459,-6521.0,0.0001656,2]
[398491680,1765743037469,-307.0712334,0.00016891,2]
[398491681,1765743037480,-500.0,0.00016891,2]
[398491682,1765743037491,-136.33256118,0.00016891,2]
[398491683,1765743037514,-363.66743882,0.00016891,2]
[398491684,1765743037524,-500.0,0.00016891,2]
[398491685,1765743037534,-500.0,0.00016891,2]
[398491686,1765743037543,-7.04862918,0.00016891,2]
[398491687,1765743037622,-294.3711004,0.00016891,2]
[398491688,1765743037636,-198.58027042,0.00016891,2]
[398491689,1765743037646,-500.0,0.00016891,2]
[398491690,1765743037657,-500.0,0.00016891,2]
[398491691,1765743037667,-500.0,0.00016891,2]
[398491692,1765743037675,-500.0,0.00016891,2]
[398491693,1765743037684,-500.0,0.00016891,2]
[398491694,1765743037695,-500.0,0.00016891,2]
[398491695,1765743037705,-500.0,0.00016891,2]
[398491696,1765743037714,-500.0,0.00016891,2]
[398491697,1765743037724,-500.0,0.00016891,2]
[398491698,1765743037735,-500.0,0.00016891,2]
[398491699,1765743037744,-500.0,0.00016891,2]
[398491700,1765743037753,-500.0,0.00016891,2]
[398491701,1765743037763,-500.0,0.00016891,2]
[398491702,1765743037772,-204.36494536,0.00016891,2]
[398491703,1765743037782,-500.0,0.00016891,2]
[398491704,1765743037791,-500.0,0.00016891,2]
[398491705,1765743037801,-500.0,0.00016891,2]
[398491706,1765743037811,-500.0,0.00016891,2]
[398491707,1765743037820,-500.0,0.00016891,2]
[398491708,1765743037829,-500.0,0.00016891,2]
[398491709,1765743037839,-500.0,0.00016891,2]
[398491710,1765743037848,-500.0,0.00016891,2]
[398491711,1765743037858,-500.0,0.00016891,2]
[398491712,1765743037867,-500.0,0.00016891,2]
[398491713,1765743037877,-500.0,0.00016891,2]
[398491714,1765743037886,-500.0,0.00016891,2]
[398491715,1765743037896,-500.0,0.00016891,2]
[398491716,1765743037906,-500.0,0.00016891,2]
[398491717,1765743037916,-500.0,0.00016891,2]
[398491718,1765743037925,-500.0,0.00016891,2]
[398491719,1765743037935,-220.43649453,0.00016891,2]
[398491720,1765743037945,-500.0,0.00016891,2]
[398491721,1765743037954,-500.0,0.00016891,2]
[398491722,1765743037964,-500.0,0.00016891,2]
[398491723,1765743037973,-188.57,0.00016893,2]
[398491724,1765743037982,-197.79357195,0.00016897,2]
[398491725,1765743037992,-197.79357194,0.00016899,2]
[398491726,1765743038002,-161.89441625,0.00016899,2]
[398491727,1765743038011,-33206.75999904,0.000169,2]
[398491728,1765743038020,-500.0,0.000169,2]
[398491729,1765743038030,-500.0,0.000169,2]
[398491730,1765743038040,-500.0,0.000169,2]
[398491731,1765743038050,-500.0,0.000169,2]
[398491732,1765743038061,-500.0,0.000169,2]
[398491733,1765743038071,-500.0,0.000169,2]
[398491734,1765743038081,-500.0,0.000169,2]
[398491735,1765743038091,-500.0,0.000169,2]
[398491736,1765743038101,-500.0,0.000169,2]
[398491737,1765743038112,-500.0,0.000169,2]
[398491738,1765743038123,-500.0,0.000169,2]
[398491739,1765743038134,-500.0,0.000169,2]
[398491740,1765743038144,-500.0,0.000169,2]
[398491741,1765743038155,-500.0,0.000169,2]
[398491742,1765743038168,-500.0,0.000169,2]
[398491743,1765743038178,-500.0,0.000169,2]
[398491744,1765743038188,-500.0,0.000169,2]
[398491745,1765743038197,-500.0,0.000169,2]
[398491746,1765743038206,-500.0,0.000169,2]
[398491747,1765743038216,-500.0,0.000169,2]
[398491748,1765743038225,-500.0,0.000169,2]
[398491749,1765743038236,-500.0,0.000169,2]
[398491750,1765743038245,-500.0,0.000169,2]
[398491751,1765743038255,-500.0,0.000169,2]
[398491752,1765743038265,-500.0,0.000169,2]
[398491753,1765743038275,-500.0,0.000169,2]
[398491754,1765743038285,-500.0,0.000169,2]
[398491755,1765743038296,-500.0,0.000169,2]
[398491756,1765743038306,-500.0,0.000169,2]
[398491757,1765743038316,-500.0,0.000169,2]
[398491758,1765743038326,-500.0,0.000169,2]
[398491759,1765743038336,-500.0,0.000169,2]
[398491760,1765743038346,-500.0,0.000169,2]
[398491761,1765743038356,-500.0,0.000169,2]
[398491762,1765743038366,-500.0,0.000169,2]
[398491763,1765743038376,-500.0,0.000169,2]
[398491764,1765743038386,-500.0,0.000169,2]
[398491765,1765743038395,-500.0,0.000169,2]
[398491766,1765743038406,-500.0,0.000169,2]
[398491768,1765743038415,-500.0,0.000169,2]
[398491769,1765743038424,-500.0,0.000169,2]
[398491771,1765743038433,-500.0,0.000169,2]
[398491773,1765743038443,-500.0,0.000169,2]
[398491775,1765743038452,-500.0,0.000169,2]
[398491776,1765743038461,-500.0,0.000169,2]
[398491777,1765743038471,-500.0,0.000169,2]
[398491778,1765743038480,-500.0,0.000169,2]
[398491779,1765743038490,-500.0,0.000169,2]
[398491780,1765743038499,-500.0,0.000169,2]
[398491781,1765743038508,-500.0,0.000169,2]
[398491782,1765743038517,-500.0,0.000169,2]
[398491783,1765743038527,-500.0,0.000169,2]
[398491784,1765743038536,-500.0,0.000169,2]
[398491785,1765743038545,-500.0,0.000169,2]
[398491786,1765743038554,-500.0,0.000169,2]
[398491787,1765743038563,-500.0,0.000169,2]
[398491788,1765743038572,-500.0,0.000169,2]
[398491789,1765743038582,-500.0,0.000169,2]
[398491790,1765743038591,-500.0,0.000169,2]
[398491791,1765743038601,-500.0,0.000169,2]
[398491793,1765743038610,-500.0,0.000169,2]
[398491794,1765743038619,-500.0,0.000169,2]
[398491796,1765743038628,-500.0,0.000169,2]
[398491797,1765743038638,-500.0,0.000169,2]
[398491798,1765743038647,-500.0,0.000169,2]
[398491799,1765743038660,-500.0,0.000169,2]
[398491800,1765743038670,-500.0,0.000169,2]
[398491801,1765743038679,-500.0,0.000169,2]
[398491802,1765743038689,-500.0,0.000169,2]
[398491803,1765743038698,-500.0,0.000169,2]
[398491804,1765743038707,-500.0,0.000169,2]
[398491805,1765743038717,-815.0,0.000169,2]
[398491806,1765743038726,-500.0,0.000169,2]
[398491807,1765743038736,-500.0,0.000169,2]
[398491808,1765743038746,-500.0,0.000169,2]
[398491809,1765743038755,-108.80673051,0.000169,2]
[398491810,1765743038769,-391.19326949,0.000169,2]
[398491811,1765743038779,-500.0,0.000169,2]
[398491812,1765743038789,-500.0,0.000169,2]
[398491813,1765743038798,-500.0,0.000169,2]
[398491814,1765743038808,-500.0,0.000169,2]
[398491815,1765743038818,-500.0,0.000169,2]
[398491816,1765743038828,-458.40673051,0.000169,2]
[398491817,1765743038888,-41.59326949,0.000169,2]
[398491818,1765743038899,-500.0,0.000169,2]
[398491819,1765743038910,-287.97775051,0.000169,2]
[398491820,1765743039534,-2751.0,0.00016114,2]
[398491821,1765743039543,-212.02224949,0.000169,2]
[398491822,1765743039552,-500.0,0.000169,2]
[398491823,1765743039561,-500.0,0.000169,2]
[398491824,1765743039570,-500.0,0.000169,2]
[398491825,1765743039579,-500.0,0.000169,2]
[398491826,1765743039588,-500.0,0.000169,2]
[398491827,1765743039597,-500.0,0.000169,2]
[398491828,1765743039606,-500.0,0.000169,2]
[398491829,1765743039615,-500.0,0.000169,2]
[398491830,1765743039626,-500.0,0.000169,2]
[398491831,1765743039635,-500.0,0.000169,2]
[398491832,1765743039644,-500.0,0.000169,2]
[398491833,1765743039655,-500.0,0.000169,2]
[398491834,1765743039665,-500.0,0.000169,2]
[398491835,1765743039674,-500.0,0.000169,2]
[398491836,1765743039684,-500.0,0.000169,2]
[398491837,1765743039693,-500.0,0.000169,2]
[398491838,1765743039705,-500.0,0.000169,2]
[398491839,1765743039715,-500.0,0.000169,2]
[398491840,1765743039726,-500.0,0.000169,2]
[398491841,1765743039735,-500.0,0.000169,2]
[398491842,1765743039745,-500.0,0.000169,2]
[398491843,1765743039755,-500.0,0.000169,2]
[398491844,1765743039765,-500.0,0.000169,2]
[398491845,1765743039775,-500.0,0.000169,2]
[398491846,1765743039785,-500.0,0.000169,2]
[398491847,1765743039795,-500.0,0.000169,2]
[398491848,1765743039805,-500.0,0.000169,2]
[398491849,1765743039815,-500.0,0.000169,2]
[398491850,1765743039825,-500.0,0.000169,2]
[398491851,1765743039834,-500.0,0.000169,2]
[398491852,1765743039844,-500.0,0.000169,2]
[398491853,1765743039853,-500.0,0.000169,2]
[398491854,1765743039863,-500.0,0.000169,2]
[398491855,1765743039872,-500.0,0.000169,2]
[398491856,1765743039881,-500.0,0.000169,2]
[398491857,1765743039890,-500.0,0.000169,2]
[398491858,1765743039899,-500.0,0.000169,2]
[398491859,1765743039910,-500.0,0.000169,2]
[398491860,1765743039919,-500.0,0.000169,2]
[398491861,1765743039928,-500.0,0.000169,2]
[398491862,1765743039938,-500.0,0.000169,2]
[398491863,1765743039947,-500.0,0.000169,2]
[398491865,1765743039956,-500.0,0.000169,2]
[398491866,1765743039965,-500.0,0.000169,2]
[398491868,1765743039975,-500.0,0.000169,2]
[398491869,1765743039985,-500.0,0.000169,2]
[398491870,1765743039994,-500.0,0.000169,2]
[398491871,1765743040004,-500.0,0.000169,2]
[398491872,1765743040014,-500.0,0.000169,2]
[398491873,1765743040023,-500.0,0.000169,2]
[398491874,1765743040032,-500.0,0.000169,2]
[398491875,1765743040042,-500.0,0.000169,2]
[398491876,1765743040051,-500.0,0.000169,2]
[398491877,1765743040060,-500.0,0.000169,2]
[398491878,1765743040070,-500.0,0.000169,2]
[398491880,1765743040080,-500.0,0.000169,2]
[398491882,1765743040090,-500.0,0.000169,2]
[398491884,1765743040100,-500.0,0.000169,2]
[398491885,1765743040110,-500.0,0.000169,2]
[398491886,1765743040123,-500.0,0.000169,2]
[398491887,1765743040132,-500.0,0.000169,2]
[398491889,1765743040142,-500.0,0.000169,2]
[398491891,1765743040152,-500.0,0.000169,2]
[398491893,1765743040168,-500.0,0.000169,2]
[398491895,1765743040178,-500.0,0.000169,2]
[398491897,1765743040189,-517.0,0.000169,2]
[398491898,1765743040198,-500.0,0.000169,2]
[398491899,1765743040207,-500.0,0.000169,2]
[398491900,1765743040216,-500.0,0.000169,2]
[398491901,1765743040225,-500.0,0.000169,2]
[398491902,1765743040234,-500.0,0.000169,2]
[398491903,1765743040244,-500.0,0.000169,2]
[398491904,1765743040253,-500.0,0.000169,2]
[398491905,1765743040263,-500.0,0.000169,2]
[398491906,1765743040271,-500.0,0.000169,2]
[398491907,1765743040281,-500.0,0.000169,2]
[398491908,1765743040290,-500.0,0.000169,2]
[398491909,1765743040299,-500.0,0.000169,2]
[398491910,1765743040308,-500.0,0.000169,2]
[398491911,1765743040318,-500.0,0.000169,2]
[398491912,1765743040328,-500.0,0.000169,2]
[398491913,1765743040338,-500.0,0.000169,2]
[398491914,1765743040347,-500.0,0.000169,2]
[398491915,1765743040357,-500.0,0.000169,2]
[398491916,1765743040366,-500.0,0.000169,2]
[398491917,1765743040376,-500.0,0.000169,2]
[398491918,1765743040385,-500.0,0.000169,2]
[398491919,1765743040395,-500.0,0.000169,2]
[398491920,1765743040405,-500.0,0.000169,2]
[398491921,1765743040417,-500.0,0.000169,2]
[398491922,1765743040426,-500.0,0.000169,2]
[398491923,1765743040436,-500.0,0.000169,2]
[398491924,1765743040445,-500.0,0.000169,2]
[398491925,1765743040455,-500.0,0.000169,2]
[398491926,1765743040464,-500.0,0.000169,2]
[398491927,1765743040473,-500.0,0.000169,2]
[398491928,1765743040482,-500.0,0.000169,2]
[398491929,1765743040492,-500.0,0.000169,2]
[398491930,1765743040501,-500.0,0.000169,2]
[398491931,1765743040511,-500.0,0.000169,2]
[398491932,1765743040520,-500.0,0.000169,2]
[398491933,1765743040529,-500.0,0.000169,2]
[398491934,1765743040538,-500.0,0.000169,2]
[398491935,1765743040548,-500.0,0.000169,2]
[398491936,1765743040557,-500.0,0.000169,2]
[398491937,1765743040566,-500.0,0.000169,2]
[398491938,1765743040575,-500.0,0.000169,2]
[398491939,1765743040585,-500.0,0.000169,2]
[398491940,1765743040594,-500.0,0.000169,2]
[398491941,1765743040604,-500.0,0.000169,2]
[398491942,1765743040612,-500.0,0.000169,2]
[398491943,1765743040623,-500.0,0.000169,2]
[398491944,1765743040632,-500.0,0.000169,2]
[398491945,1765743040641,-500.0,0.000169,2]
[398491946,1765743040650,-500.0,0.000169,2]
[398491947,1765743040661,-500.0,0.000169,2]
[398491948,1765743040671,-500.0,0.000169,2]
[398491949,1765743040680,-500.0,0.000169,2]
[398491950,1765743040689,-500.0,0.000169,2]
[398491951,1765743040698,-500.0,0.000169,2]
[398491952,1765743040707,-500.0,0.000169,2]
[398491953,1765743040717,-500.0,0.000169,2]
[398491954,1765743040726,-500.0,0.000169,2]
[398491955,1765743040735,-500.0,0.000169,2]
[398491956,1765743040744,-500.0,0.000169,2]
[398491957,1765743040754,-500.0,0.000169,2]
[398491958,1765743040763,-500.0,0.000169,2]
[398491959,1765743040772,-500.0,0.000169,2]
[398491960,1765743040781,-682.0,0.000169,2]
[398491961,1765743040790,-1603.2485059,0.000169,2]
[398491962,1765743040800,-197.79357194,0.000169,2]
[398491963,1765743040810,-500.0,0.0001697,2]
[398491964,1765743040819,-985.0,0.00016973,2]
[398491965,1765743040829,-500.0,0.00016973,2]
[398491966,1765743040838,-150.0,0.00016973,2]
[398491967,1765743040850,-54038.42,0.00016986,2]
[398491968,1765743040859,-20614.03679485,0.0001699,2]
[398491969,1765743040868,-500.0,0.00016997,2]
[398491970,1765743040878,-500.0,0.00016997,2]
[398491971,1765743040887,-500.0,0.00016997,2]
[398491972,1765743040896,-500.0,0.00016999,2]
[398491973,1765743040905,-500.0,0.00016999,2]
[398491974,1765743040916,-500.0,0.00016999,2]
[398491975,1765743040926,-500.0,0.00016999,2]
[398491976,1765743040936,-500.0,0.00016999,2]
[398491977,1765743040945,-500.0,0.00016999,2]
[398491978,1765743040955,-346.36759798,0.00016999,2]
[398491979,1765743040965,-300.0,0.00016999,2]
[398491980,1765743040975,-300.0,0.00016999,2]
[398491981,1765743040984,-2409.0,0.00017,2]
[398491982,1765743040995,-192.879277,0.00017,2]
[398491983,1765743041005,-3856719.46116803,0.00017,2]
[398491984,1765743041014,-891874.80437193,0.00017,2]
[398491996,1765743043444,-443.005,0.00017,2]
[398491997,1765743043483,-859.72858564,0.00017,2]
[398491998,1765743043716,-416.27920025,0.0001656,2]
[398491999,1765743043727,-146.72079975,0.0001656,2]
[398492000,1765743043739,-475.74801152,0.00017,2]
[398492162,1765743320762,333.33333333,0.000225,120]
[398492164,1765743321129,333.33333333,0.000225,120]
[398492175,1765743369529,-193.84589424,0.00015723,2]
[398492176,1765743370704,-200.0,0.00015723,2]
[398492177,1765743373066,-241.62848032,0.00015723,2]
[398492178,1765743376481,-300.0,0.00015723,2]
[398492180,1765743378812,-367.7840324,0.00015723,2]
[398492181,1765743381417,-244.32582589,0.00015723,2]
[398492182,1765743386712,-211.29164247,0.00015723,2]
[398492183,1765743388345,-316.66,0.00015723,2]
[398492184,1765743393832,-195.0,0.00015723,2]
[398492185,1765743395058,-329.33997296,0.00015723,2]
[398492186,1765743396549,-289.30269071,0.00015723,2]
[398492187,1765743398601,-215.0738,0.00015723,2]
[398492188,1765743401415,-195.0,0.00015723,2]
[398492193,1765743403631,-281.0,0.00015723,2]
[398492200,1765743406176,-161.73294289,0.00015723,2]
[398492294,1765743647590,1000.0,0.00013699,2]
[398492382,1765743885194,177.53306224,0.00015623,2]
[398492389,1765743912053,635.0,0.00015708,2]
[398492392,1765743920406,150.0,0.00015288,2]
[398492393,1765743920493,150.0,0.00015712,2]
[398492394,1765743920611,150.0,0.000155,2]
[398492395,1765743921037,150.0,0.00015288,2]
[398492396,1765743921078,150.0,0.00015418,2]
[398492397,1765743921180,150.0,0.00015549,2]
[398492398,1765743921219,150.0,0.0001568,2]
[398492401,1765743922018,150.0,0.00015288,2]
[398492402,1765743922054,150.0,0.00015712,2]
[398492403,1765743927011,150.0,0.00015288,2]
[398492404,1765743927066,150.0,0.0001553,2]
[398492414,1765743930994,150.0,0.00015288,2]
[398492422,1765743945357,150.0,0.00015288,2]
[398492521,1765744028273,188.04,0.00012355,2]
[398492603,1765744150713,307.92,0.00015137,2]
[398492648,1765744195568,177.53306224,0.00015623,2]
[398492713,1765744232041,-435.29300942,0.00015723,2]